[Event "Titled Tuesday Blitz August 22 Late 2023"]
[White "Haydon, David L"]
[Black "Feliz Dotel, Dewar Bienvenido"]
[WhiteFideId "415405"]
[BlackFideId "6402801"]
[WhiteElo "2687"]
[BlackElo "2192"]
[Result "0-1"]
[Round "9"]
[TimeControl "180+1"]
[Date "2023.08.22"]
[WhiteClock "0:00:00"]
[BlackClock "0:00:22"]
[Board "96"]

1. d4 {[%clk 0:02:51]}  d5 {[%clk 0:02:58]} 2. Bf4 {[%clk 0:02:48]}  e6 {[%clk 0:02:57]} 3. Nc3 {[%clk 0:02:48]}  c5 {[%clk 0:02:57]} 4. e4 {[%clk 0:02:38]}  Nf6 {[%clk 0:02:48]} 5. e5 {[%clk 0:02:33]}  Nfd7 {[%clk 0:02:48]} 6. Bb5 {[%clk 0:02:29]}  cxd4 {[%clk 0:02:45]} 7. Qxd4 {[%clk 0:02:25]}  Nc6 {[%clk 0:02:44]} 8. Bxc6 {[%clk 0:02:23]}  bxc6 {[%clk 0:02:44]} 9. b4 {[%clk 0:01:53]}  Qb6 {[%clk 0:02:36]} 10. Qxb6 {[%clk 0:01:19]}  axb6 {[%clk 0:02:37]} 11. Rb1 {[%clk 0:01:09]}  Ra3 {[%clk 0:02:35]} 12. Nge2 {[%clk 0:01:04]}  Ba6 {[%clk 0:02:21]} 13. b5 {[%clk 0:00:46]}  cxb5 {[%clk 0:02:20]} 14. Nxb5 {[%clk 0:00:35]}  Bxb5 {[%clk 0:02:10]} 15. Rxb5 {[%clk 0:00:35]}  Rxa2 {[%clk 0:02:07]} 16. O-O {[%clk 0:00:35]}  Bc5 {[%clk 0:02:00]} 17. Rc1 {[%clk 0:00:19]}  O-O {[%clk 0:01:57]} 18. Rb3 {[%clk 0:00:17]}  Rfa8 {[%clk 0:01:51]} 19. h4 {[%clk 0:00:13]}  h6 {[%clk 0:01:49]} 20. Rg3 {[%clk 0:00:13]}  Kh7 {[%clk 0:01:47]} 21. Be3 {[%clk 0:00:11]}  Bxe3 {[%clk 0:01:43]} 22. Rxe3 {[%clk 0:00:10]}  R8a3 {[%clk 0:01:42]} 23. Rxa3 {[%clk 0:00:07]}  Rxa3 {[%clk 0:01:42]} 24. f4 {[%clk 0:00:08]}  Ra2 {[%clk 0:01:26]} 25. Nd4 {[%clk 0:00:07]}  Ra4 {[%clk 0:01:16]} 26. c3 {[%clk 0:00:06]}  Ra3 {[%clk 0:01:15]} 27. g4 {[%clk 0:00:06]}  Nc5 {[%clk 0:01:10]} 28. f5 {[%clk 0:00:06]}  exf5 {[%clk 0:01:07]} 29. gxf5 {[%clk 0:00:05]}  Nd3 {[%clk 0:01:06]} 30. Rb1 {[%clk 0:00:06]}  Nxe5 {[%clk 0:01:05]} 31. Rxb6 {[%clk 0:00:06]}  Rxc3 {[%clk 0:01:04]} 32. Rd6 {[%clk 0:00:06]}  Rd3 {[%clk 0:01:00]} 33. Nb5 {[%clk 0:00:04]}  d4 {[%clk 0:00:55]} 34. Kf2 {[%clk 0:00:02]}  Ng4+ {[%clk 0:00:48]} 35. Ke2 {[%clk 0:00:02]}  Re3+ {[%clk 0:00:46]} 36. Kd2 {[%clk 0:00:02]}  Rh3 {[%clk 0:00:44]} 37. Nxd4 {[%clk 0:00:03]}  Rxh4 {[%clk 0:00:43]} 38. Rd7 {[%clk 0:00:04]}  Nf6 {[%clk 0:00:43]} 39. Nc6 {[%clk 0:00:04]}  Nxd7 {[%clk 0:00:42]} 40. Ne7 {[%clk 0:00:04]}  Rf4 {[%clk 0:00:38]} 41. Nd5 {[%clk 0:00:03]}  Rxf5 {[%clk 0:00:38]} 42. Ne7 {[%clk 0:00:02]}  Re5 {[%clk 0:00:37]} 43. Nc6 {[%clk 0:00:03]}  Rd5+ {[%clk 0:00:36]} 44. Ke3 {[%clk 0:00:03]}  h5 {[%clk 0:00:36]} 45. Nb4 {[%clk 0:00:04]}  Re5+ {[%clk 0:00:34]} 46. Kf4 {[%clk 0:00:03]}  g5+ {[%clk 0:00:34]} 47. Kg3 {[%clk 0:00:02]}  Re3+ {[%clk 0:00:34]} 48. Kf2 {[%clk 0:00:02]}  Rb3 {[%clk 0:00:33]} 49. Nd5 {[%clk 0:00:02]}  h4 {[%clk 0:00:30]} 50. Ne7 {[%clk 0:00:03]}  Rb5 {[%clk 0:00:26]} 51. Nc6 {[%clk 0:00:02]}  Rd5 {[%clk 0:00:24]} 52. Ne7 {[%clk 0:00:02]}  Re5 {[%clk 0:00:23]} 53. Nc6 {[%clk 0:00:00]}  Rf5+ {[%clk 0:00:22]} 0-1


[Site "https://www.chess.com"]

[Event "Titled Tuesday Blitz August 22 Late 2023"]
[White "Musovic, Armin"]
[Black "Stanisz, Patryk"]
[WhiteFideId "939935"]
[BlackFideId "1123106"]
[WhiteElo "2523"]
[BlackElo "2327"]
[Result "1/2-1/2"]
[Round "9"]
[TimeControl "180+1"]
[Date "2023.08.22"]
[WhiteClock "0:00:16"]
[BlackClock "0:00:11"]
[Board "98"]

1. a3 {[%clk 0:02:55]}  a6 {[%clk 0:02:59]} 2. Nc3 {[%clk 0:02:51]}  d5 {[%clk 0:02:57]} 3. e4 {[%clk 0:02:51]}  dxe4 {[%clk 0:02:55]} 4. Nxe4 {[%clk 0:02:51]}  Bf5 {[%clk 0:02:55]} 5. Ng3 {[%clk 0:02:52]}  Bg6 {[%clk 0:02:55]} 6. Nf3 {[%clk 0:02:49]}  e6 {[%clk 0:02:50]} 7. d4 {[%clk 0:02:49]}  Nd7 {[%clk 0:02:48]} 8. Bd3 {[%clk 0:02:49]}  Bxd3 {[%clk 0:02:47]} 9. Qxd3 {[%clk 0:02:49]}  Ngf6 {[%clk 0:02:48]} 10. O-O {[%clk 0:02:48]}  c5 {[%clk 0:02:44]} 11. Re1 {[%clk 0:02:47]}  Be7 {[%clk 0:02:41]} 12. Qb3 {[%clk 0:02:37]}  b5 {[%clk 0:02:38]} 13. c3 {[%clk 0:02:28]}  O-O {[%clk 0:02:37]} 14. Bg5 {[%clk 0:02:27]}  h6 {[%clk 0:02:36]} 15. Bxf6 {[%clk 0:02:26]}  Nxf6 {[%clk 0:02:33]} 16. Rad1 {[%clk 0:02:25]}  Qc7 {[%clk 0:02:33]} 17. Ne5 {[%clk 0:02:21]}  cxd4 {[%clk 0:02:30]} 18. cxd4 {[%clk 0:02:07]}  Rfd8 {[%clk 0:02:26]} 19. Nxf7 {[%clk 0:01:45]}  Kxf7 {[%clk 0:02:19]} 20. Qxe6+ {[%clk 0:01:45]}  Kf8 {[%clk 0:02:16]} 21. Nf5 {[%clk 0:01:45]}  Nd5 {[%clk 0:01:31]} 22. Rd3 {[%clk 0:00:41]}  Nf4 {[%clk 0:01:09]} 23. Nxg7 {[%clk 0:00:33]}  Kxg7 {[%clk 0:00:59]} 24. Qxe7+ {[%clk 0:00:20]}  Qxe7 {[%clk 0:00:58]} 25. Rxe7+ {[%clk 0:00:21]}  Kf6 {[%clk 0:00:55]} 26. Rde3 {[%clk 0:00:21]}  Rxd4 {[%clk 0:00:49]} 27. h3 {[%clk 0:00:20]}  Rg8 {[%clk 0:00:46]} 28. g3 {[%clk 0:00:18]}  Nxh3+ {[%clk 0:00:35]} 29. Kg2 {[%clk 0:00:17]}  Nf4+ {[%clk 0:00:34]} 30. Kh2 {[%clk 0:00:17]}  Nd5 {[%clk 0:00:27]} 31. R3e6+ {[%clk 0:00:16]}  Kf5 {[%clk 0:00:28]} 32. Re5+ {[%clk 0:00:17]}  Kg4 {[%clk 0:00:24]} 33. Rf7 {[%clk 0:00:16]}  Rg5 {[%clk 0:00:16]} 34. f3+ {[%clk 0:00:10]}  Kh5 {[%clk 0:00:16]} 35. Rff5 {[%clk 0:00:05]}  Rd2+ {[%clk 0:00:14]} 36. Kh3 {[%clk 0:00:05]}  Rxf5 {[%clk 0:00:12]} 37. Rxf5+ {[%clk 0:00:06]}  Kg6 {[%clk 0:00:13]} 38. Rf8 {[%clk 0:00:07]}  Ne3 {[%clk 0:00:12]} 39. g4 {[%clk 0:00:06]}  Rxb2 {[%clk 0:00:12]} 40. Rg8+ {[%clk 0:00:05]}  Kh7 {[%clk 0:00:12]} 41. Ra8 {[%clk 0:00:05]}  Rb3 {[%clk 0:00:10]} 42. Ra7+ {[%clk 0:00:05]}  Kh8 {[%clk 0:00:10]} 43. Ra8+ {[%clk 0:00:06]}  Kg7 {[%clk 0:00:10]} 44. Ra7+ {[%clk 0:00:07]}  Kg6 {[%clk 0:00:10]} 45. Rxa6+ {[%clk 0:00:07]}  Kg5 {[%clk 0:00:10]} 46. Ra5 {[%clk 0:00:06]}  Nc4 {[%clk 0:00:09]} 47. Ra8 {[%clk 0:00:05]}  Rxf3+ {[%clk 0:00:09]} 48. Kg2 {[%clk 0:00:06]}  Rxa3 {[%clk 0:00:10]} 49. Rg8+ {[%clk 0:00:06]}  Kh4 {[%clk 0:00:10]} 50. Rg6 {[%clk 0:00:06]}  Rg3+ {[%clk 0:00:09]} 51. Kf2 {[%clk 0:00:06]}  Rxg4 {[%clk 0:00:09]} 52. Rxh6+ {[%clk 0:00:07]}  Kg5 {[%clk 0:00:09]} 53. Rh8 {[%clk 0:00:08]}  Rf4+ {[%clk 0:00:09]} 54. Ke2 {[%clk 0:00:07]}  Rf5 {[%clk 0:00:09]} 55. Kd3 {[%clk 0:00:07]}  Ne5+ {[%clk 0:00:09]} 56. Kc3 {[%clk 0:00:07]}  Kf4 {[%clk 0:00:09]} 57. Kb4 {[%clk 0:00:08]}  Ng4 {[%clk 0:00:09]} 58. Re8 {[%clk 0:00:07]}  Ne5 {[%clk 0:00:07]} 59. Rb8 {[%clk 0:00:07]}  Nd3+ {[%clk 0:00:08]} 60. Kc3 {[%clk 0:00:06]}  Ke3 {[%clk 0:00:07]} 61. Re8+ {[%clk 0:00:05]}  Ne5 {[%clk 0:00:04]} 62. Kb4 {[%clk 0:00:05]}  Kd4 {[%clk 0:00:04]} 63. Kxb5 {[%clk 0:00:05]}  Nd7+ {[%clk 0:00:05]} 64. Kc6 {[%clk 0:00:04]}  Ne5+ {[%clk 0:00:05]} 65. Kd6 {[%clk 0:00:04]}  Rf6+ {[%clk 0:00:05]} 66. Re6 {[%clk 0:00:04]}  Rf5 {[%clk 0:00:04]} 67. Rh6 {[%clk 0:00:04]}  Nc4+ {[%clk 0:00:04]} 68. Ke6 {[%clk 0:00:05]}  Rd5 {[%clk 0:00:03]} 69. Rh4+ {[%clk 0:00:04]}  Kc5 {[%clk 0:00:04]} 70. Rh8 {[%clk 0:00:04]}  Rd6+ {[%clk 0:00:04]} 71. Kf5 {[%clk 0:00:04]}  Kd5 {[%clk 0:00:05]} 72. Ra8 {[%clk 0:00:04]}  Rd7 {[%clk 0:00:04]} 73. Kf6 {[%clk 0:00:04]}  Rc7 {[%clk 0:00:03]} 74. Rd8+ {[%clk 0:00:03]}  Kc5 {[%clk 0:00:03]} 75. Ra8 {[%clk 0:00:04]}  Rc6+ {[%clk 0:00:04]} 76. Kf5 {[%clk 0:00:04]}  Nd6+ {[%clk 0:00:05]} 77. Kf4 {[%clk 0:00:05]}  Rc7 {[%clk 0:00:05]} 78. Ra5+ {[%clk 0:00:05]}  Nb5 {[%clk 0:00:05]} 79. Ra1 {[%clk 0:00:06]}  Rf7+ {[%clk 0:00:04]} 80. Ke5 {[%clk 0:00:06]}  Re7+ {[%clk 0:00:04]} 81. Kf6 {[%clk 0:00:07]}  Re2 {[%clk 0:00:05]} 82. Rc1+ {[%clk 0:00:07]}  Kd5 {[%clk 0:00:05]} 83. Ra1 {[%clk 0:00:08]}  Rf2+ {[%clk 0:00:04]} 84. Ke7 {[%clk 0:00:09]}  Nd4 {[%clk 0:00:03]} 85. Ra5+ {[%clk 0:00:09]}  Ke4 {[%clk 0:00:04]} 86. Rh5 {[%clk 0:00:10]}  Nf5+ {[%clk 0:00:03]} 87. Kd7 {[%clk 0:00:10]}  Rd2+ {[%clk 0:00:03]} 88. Kc7 {[%clk 0:00:10]}  Rc2+ {[%clk 0:00:04]} 89. Kb7 {[%clk 0:00:10]}  Ke5 {[%clk 0:00:04]} 90. Rh1 {[%clk 0:00:10]}  Rb2+ {[%clk 0:00:04]} 91. Kc7 {[%clk 0:00:10]}  Rc2+ {[%clk 0:00:05]} 92. Kb7 {[%clk 0:00:11]}  Ke6 {[%clk 0:00:05]} 93. Rd1 {[%clk 0:00:10]}  Nd6+ {[%clk 0:00:04]} 94. Kb6 {[%clk 0:00:10]}  Kd7 {[%clk 0:00:05]} 95. Rh1 {[%clk 0:00:10]}  Rb2+ {[%clk 0:00:05]} 96. Kc5 {[%clk 0:00:11]}  Rb5+ {[%clk 0:00:06]} 97. Kd4 {[%clk 0:00:11]}  Rg5 {[%clk 0:00:07]} 98. Rh7+ {[%clk 0:00:11]}  Kc6 {[%clk 0:00:07]} 99. Rh8 {[%clk 0:00:12]}  Rg4+ {[%clk 0:00:07]} 100. Kc3 {[%clk 0:00:12]}  Rg5 {[%clk 0:00:08]} 101. Kd3 {[%clk 0:00:12]}  Kd5 {[%clk 0:00:08]} 102. Rh3 {[%clk 0:00:12]}  Rg4 {[%clk 0:00:08]} 103. Rh5+ {[%clk 0:00:13]}  Kc6 {[%clk 0:00:09]} 104. Rh8 {[%clk 0:00:14]}  Ra4 {[%clk 0:00:09]} 105. Kc3 {[%clk 0:00:14]}  Kc5 {[%clk 0:00:09]} 106. Kb3 {[%clk 0:00:14]}  Rb4+ {[%clk 0:00:09]} 107. Kc2 {[%clk 0:00:15]}  Rg4 {[%clk 0:00:09]} 108. Rh5+ {[%clk 0:00:15]}  Kc4 {[%clk 0:00:09]} 109. Rh2 {[%clk 0:00:15]}  Nb5 {[%clk 0:00:10]} 110. Kd2 {[%clk 0:00:15]}  Nd4 {[%clk 0:00:10]} 111. Rh8 {[%clk 0:00:16]}  Nf3+ {[%clk 0:00:10]} 112. Ke3 {[%clk 0:00:16]}  Nd4 {[%clk 0:00:11]} 113. Rc8+ {[%clk 0:00:16]} 1/2-1/2


[Site "https://www.chess.com"]

[Event "Titled Tuesday Blitz August 22 Late 2023"]
[White "Acikel, Mert"]
[Black "Deviprasath, Sharvesh"]
[WhiteFideId "12956465"]
[BlackFideId "30938228"]
[WhiteElo "2312"]
[BlackElo "2491"]
[Result "0-1"]
[Round "9"]
[TimeControl "180+1"]
[Date "2023.08.22"]
[WhiteClock "0:00:01"]
[BlackClock "0:00:17"]
[Board "100"]

1. e4 {[%clk 0:02:59]}  c5 {[%clk 0:02:58]} 2. c3 {[%clk 0:02:59]}  d5 {[%clk 0:02:58]} 3. exd5 {[%clk 0:02:59]}  Nf6 {[%clk 0:02:59]} 4. d4 {[%clk 0:03:00]}  cxd4 {[%clk 0:02:57]} 5. cxd4 {[%clk 0:02:57]}  Nxd5 {[%clk 0:02:56]} 6. Nc3 {[%clk 0:02:57]}  Nc6 {[%clk 0:02:56]} 7. Nf3 {[%clk 0:02:57]}  Bg4 {[%clk 0:02:56]} 8. Be2 {[%clk 0:02:57]}  e6 {[%clk 0:02:55]} 9. O-O {[%clk 0:02:57]}  Be7 {[%clk 0:02:55]} 10. h3 {[%clk 0:02:55]}  Bh5 {[%clk 0:02:55]} 11. Ne4 {[%clk 0:02:49]}  O-O {[%clk 0:02:53]} 12. Bd2 {[%clk 0:02:45]}  a6 {[%clk 0:02:46]} 13. Rc1 {[%clk 0:02:36]}  Bg6 {[%clk 0:02:45]} 14. Nc5 {[%clk 0:02:34]}  b6 {[%clk 0:02:41]} 15. Nb3 {[%clk 0:02:32]}  Qd7 {[%clk 0:02:32]} 16. a3 {[%clk 0:02:19]}  Rfc8 {[%clk 0:02:23]} 17. Ne5 {[%clk 0:02:08]}  Nxe5 {[%clk 0:02:21]} 18. dxe5 {[%clk 0:02:09]}  Rxc1 {[%clk 0:02:19]} 19. Qxc1 {[%clk 0:02:08]}  Rc8 {[%clk 0:02:19]} 20. Qd1 {[%clk 0:02:04]}  Bc2 {[%clk 0:02:18]} 21. Qe1 {[%clk 0:01:59]}  Bxb3 {[%clk 0:02:18]} 22. Bxa6 {[%clk 0:01:59]}  Bc4 {[%clk 0:02:16]} 23. Bxc4 {[%clk 0:01:59]}  Rxc4 {[%clk 0:02:16]} 24. Qd1 {[%clk 0:01:57]}  g6 {[%clk 0:02:09]} 25. Qb3 {[%clk 0:01:46]}  Qc6 {[%clk 0:02:07]} 26. g3 {[%clk 0:01:40]}  Rc2 {[%clk 0:02:04]} 27. Bh6 {[%clk 0:01:39]}  Bf8 {[%clk 0:02:01]} 28. Bg5 {[%clk 0:01:38]}  h6 {[%clk 0:02:01]} 29. Bd8 {[%clk 0:01:35]}  Qc8 {[%clk 0:01:57]} 30. a4 {[%clk 0:01:18]}  Re2 {[%clk 0:01:44]} 31. Bxb6 {[%clk 0:01:16]}  Qb8 {[%clk 0:01:41]} 32. a5 {[%clk 0:01:16]}  Bc5 {[%clk 0:01:41]} 33. Qc4 {[%clk 0:01:05]}  Bxb6 {[%clk 0:01:18]} 34. Qxe2 {[%clk 0:00:59]}  Bxa5 {[%clk 0:01:19]} 35. h4 {[%clk 0:00:50]}  h5 {[%clk 0:01:13]} 36. Rc1 {[%clk 0:00:49]}  Bc7 {[%clk 0:00:37]} 37. f4 {[%clk 0:00:43]}  Qb4 {[%clk 0:00:26]} 38. Rc4 {[%clk 0:00:33]}  Bb6+ {[%clk 0:00:24]} 39. Kh2 {[%clk 0:00:30]}  Qa5 {[%clk 0:00:25]} 40. b4 {[%clk 0:00:09]}  Qa1 {[%clk 0:00:20]} 41. b5 {[%clk 0:00:06]}  Qg1+ {[%clk 0:00:18]} 42. Kh3 {[%clk 0:00:06]}  Qh1+ {[%clk 0:00:18]} 43. Qh2 {[%clk 0:00:06]}  Qf1+ {[%clk 0:00:16]} 44. Qg2 {[%clk 0:00:07]}  Qxc4 {[%clk 0:00:17]} 45. g4 {[%clk 0:00:06]}  Nxf4+ {[%clk 0:00:15]} 46. Kg3 {[%clk 0:00:06]}  Nxg2 {[%clk 0:00:16]} 47. Kxg2 {[%clk 0:00:01]}  Qxg4+ {[%clk 0:00:17]} 0-1


[Site "https://www.chess.com"]

[Event "Titled Tuesday Blitz August 22 Late 2023"]
[White "ArchibaldCerveza29"]
[Black "Brahami, Lamine"]
[BlackFideId "7905637"]
[WhiteElo "2449"]
[BlackElo "2296"]
[Result "0-1"]
[Round "9"]
[TimeControl "180+1"]
[Date "2023.08.22"]
[WhiteClock "0:00:25"]
[BlackClock "0:01:46"]
[Board "102"]

1. e4 {[%clk 0:02:56]}  c5 {[%clk 0:02:59]} 2. Nf3 {[%clk 0:02:55]}  d6 {[%clk 0:02:59]} 3. d4 {[%clk 0:02:56]}  cxd4 {[%clk 0:03:00]} 4. Nxd4 {[%clk 0:02:56]}  Nf6 {[%clk 0:03:01]} 5. Nc3 {[%clk 0:02:56]}  a6 {[%clk 0:03:02]} 6. Bc4 {[%clk 0:02:56]}  e5 {[%clk 0:03:00]} 7. Nf5 {[%clk 0:02:55]}  Bxf5 {[%clk 0:03:00]} 8. exf5 {[%clk 0:02:54]}  Qc8 {[%clk 0:03:00]} 9. Bd3 {[%clk 0:02:51]}  Be7 {[%clk 0:02:58]} 10. g4 {[%clk 0:02:51]}  Qc6 {[%clk 0:02:53]} 11. O-O {[%clk 0:02:48]}  Nbd7 {[%clk 0:02:46]} 12. g5 {[%clk 0:02:47]}  Nd5 {[%clk 0:02:46]} 13. Be4 {[%clk 0:02:38]}  Nxc3 {[%clk 0:02:42]} 14. Bxc6 {[%clk 0:02:38]}  Nxd1 {[%clk 0:02:42]} 15. Bxd7+ {[%clk 0:02:15]}  Kxd7 {[%clk 0:02:39]} 16. Rxd1 {[%clk 0:02:16]}  f6 {[%clk 0:02:38]} 17. g6 {[%clk 0:02:11]}  hxg6 {[%clk 0:02:37]} 18. fxg6 {[%clk 0:02:12]}  Rh4 {[%clk 0:02:34]} 19. Rd3 {[%clk 0:02:10]}  Rah8 {[%clk 0:02:32]} 20. Bd2 {[%clk 0:01:30]}  Rxh2 {[%clk 0:02:32]} 21. Re1 {[%clk 0:01:28]}  Rh1+ {[%clk 0:02:19]} 22. Kg2 {[%clk 0:01:28]}  R8h2+ {[%clk 0:02:18]} 23. Kf3 {[%clk 0:01:26]}  Rxe1 {[%clk 0:02:18]} 24. Bxe1 {[%clk 0:01:26]}  f5 {[%clk 0:02:18]} 25. Ke2 {[%clk 0:01:26]}  Rg2 {[%clk 0:02:09]} 26. Bc3 {[%clk 0:01:08]}  Ke6 {[%clk 0:02:06]} 27. Ba5 {[%clk 0:00:58]}  Rxg6 {[%clk 0:02:01]} 28. Rb3 {[%clk 0:00:59]}  b5 {[%clk 0:02:01]} 29. a4 {[%clk 0:00:58]}  bxa4 {[%clk 0:02:01]} 30. Rb6 {[%clk 0:00:59]}  Rg4 {[%clk 0:01:53]} 31. Rxa6 {[%clk 0:00:57]}  Re4+ {[%clk 0:01:50]} 32. Kf3 {[%clk 0:00:56]}  g5 {[%clk 0:01:51]} 33. c3 {[%clk 0:00:55]}  g4+ {[%clk 0:01:51]} 34. Kg3 {[%clk 0:00:54]}  Bg5 {[%clk 0:01:50]} 35. Bb6 {[%clk 0:00:53]}  Bf4+ {[%clk 0:01:50]} 36. Kg2 {[%clk 0:00:52]}  Re2 {[%clk 0:01:47]} 37. Bc5 {[%clk 0:00:52]}  e4 {[%clk 0:01:46]} 38. Ba3 {[%clk 0:00:47]}  e3 {[%clk 0:01:46]} 39. Kf1 {[%clk 0:00:40]}  Rxf2+ {[%clk 0:01:46]} 40. Kg1 {[%clk 0:00:38]}  Bh2+ {[%clk 0:01:46]} 41. Kh1 {[%clk 0:00:25]}  e2 {[%clk 0:01:46]} 0-1


[Site "https://www.chess.com"]

[Event "Titled Tuesday Blitz August 22 Late 2023"]
[White "Cardozo Munar, Carlos Eduardo"]
[Black "Carroll, Thomas"]
[WhiteFideId "4409477"]
[BlackFideId "450111"]
[WhiteElo "2287"]
[BlackElo "2418"]
[Result "1-0"]
[Round "9"]
[TimeControl "180+1"]
[Date "2023.08.22"]
[WhiteClock "0:00:17"]
[BlackClock "0:00:08"]
[Board "104"]

1. e4 {[%clk 0:02:49]}  e6 {[%clk 0:03:00]} 2. Nf3 {[%clk 0:02:46]}  d5 {[%clk 0:02:58]} 3. e5 {[%clk 0:02:47]}  c5 {[%clk 0:02:55]} 4. b4 {[%clk 0:02:47]}  cxb4 {[%clk 0:02:54]} 5. d4 {[%clk 0:02:48]}  Nc6 {[%clk 0:02:50]} 6. a3 {[%clk 0:02:47]}  Nge7 {[%clk 0:02:50]} 7. axb4 {[%clk 0:02:44]}  Nxb4 {[%clk 0:02:50]} 8. c3 {[%clk 0:02:44]}  Nbc6 {[%clk 0:02:50]} 9. Ba3 {[%clk 0:02:45]}  Ng6 {[%clk 0:02:50]} 10. h4 {[%clk 0:02:34]}  Bxa3 {[%clk 0:02:46]} 11. Nxa3 {[%clk 0:02:35]}  h6 {[%clk 0:02:43]} 12. h5 {[%clk 0:02:34]}  Nge7 {[%clk 0:02:43]} 13. Rh3 {[%clk 0:02:35]}  Bd7 {[%clk 0:02:37]} 14. Nb5 {[%clk 0:02:35]}  O-O {[%clk 0:02:34]} 15. Bd3 {[%clk 0:02:35]}  Nf5 {[%clk 0:02:31]} 16. Bxf5 {[%clk 0:02:34]}  exf5 {[%clk 0:02:32]} 17. Nd6 {[%clk 0:02:34]}  f6 {[%clk 0:02:30]} 18. exf6 {[%clk 0:02:12]}  Qxf6 {[%clk 0:02:16]} 19. Nxb7 {[%clk 0:02:09]}  Rfe8+ {[%clk 0:01:46]} 20. Kf1 {[%clk 0:02:09]}  Nd8 {[%clk 0:01:32]} 21. Nxd8 {[%clk 0:02:04]}  Rexd8 {[%clk 0:01:30]} 22. Ne5 {[%clk 0:02:05]}  Bb5+ {[%clk 0:01:28]} 23. Kg1 {[%clk 0:02:04]}  a6 {[%clk 0:01:26]} 24. Rg3 {[%clk 0:02:01]}  Rac8 {[%clk 0:01:21]} 25. Rg6 {[%clk 0:01:59]}  Qh4 {[%clk 0:01:18]} 26. Qf3 {[%clk 0:01:49]}  Rc7 {[%clk 0:01:09]} 27. Qxf5 {[%clk 0:01:43]}  Rf8 {[%clk 0:01:01]} 28. Qe6+ {[%clk 0:01:43]}  Kh7 {[%clk 0:00:55]} 29. Rg3 {[%clk 0:00:52]}  Qxh5 {[%clk 0:00:50]} 30. Re1 {[%clk 0:00:47]}  Qf5 {[%clk 0:00:49]} 31. Qg6+ {[%clk 0:00:31]}  Qxg6 {[%clk 0:00:49]} 32. Nxg6 {[%clk 0:00:32]}  Rf6 {[%clk 0:00:45]} 33. Ne7 {[%clk 0:00:30]}  Bc4 {[%clk 0:00:42]} 34. Rge3 {[%clk 0:00:15]}  a5 {[%clk 0:00:40]} 35. Ra1 {[%clk 0:00:16]}  Ra7 {[%clk 0:00:40]} 36. Nc8 {[%clk 0:00:16]}  Ra8 {[%clk 0:00:38]} 37. Re8 {[%clk 0:00:10]}  Rc6 {[%clk 0:00:33]} 38. Nd6 {[%clk 0:00:10]}  Rxe8 {[%clk 0:00:31]} 39. Nxe8 {[%clk 0:00:11]}  Ra6 {[%clk 0:00:31]} 40. Nc7 {[%clk 0:00:12]}  Ra7 {[%clk 0:00:30]} 41. Ne6 {[%clk 0:00:12]}  a4 {[%clk 0:00:29]} 42. Ra3 {[%clk 0:00:13]}  Bb3 {[%clk 0:00:28]} 43. Nc5 {[%clk 0:00:13]}  Rb7 {[%clk 0:00:26]} 44. g4 {[%clk 0:00:12]}  Kg6 {[%clk 0:00:25]} 45. f4 {[%clk 0:00:12]}  h5 {[%clk 0:00:25]} 46. gxh5+ {[%clk 0:00:12]}  Kxh5 {[%clk 0:00:25]} 47. Kf2 {[%clk 0:00:12]}  Kg4 {[%clk 0:00:25]} 48. Ke3 {[%clk 0:00:13]}  Re7+ {[%clk 0:00:24]} 49. Kd2 {[%clk 0:00:14]}  Kxf4 {[%clk 0:00:24]} 50. Nxb3 {[%clk 0:00:14]}  axb3 {[%clk 0:00:23]} 51. Rxb3 {[%clk 0:00:15]}  g5 {[%clk 0:00:23]} 52. Rb5 {[%clk 0:00:15]}  g4 {[%clk 0:00:19]} 53. Rxd5 {[%clk 0:00:15]}  g3 {[%clk 0:00:20]} 54. Rd8 {[%clk 0:00:14]}  g2 {[%clk 0:00:19]} 55. Rg8 {[%clk 0:00:15]}  Kf3 {[%clk 0:00:20]} 56. d5 {[%clk 0:00:14]}  Kf2 {[%clk 0:00:19]} 57. c4 {[%clk 0:00:15]}  g1=Q {[%clk 0:00:18]} 58. Rxg1 {[%clk 0:00:16]}  Kxg1 {[%clk 0:00:19]} 59. d6 {[%clk 0:00:16]}  Rd7 {[%clk 0:00:19]} 60. c5 {[%clk 0:00:17]}  Kf2 {[%clk 0:00:20]} 61. Kd3 {[%clk 0:00:17]}  Kf3 {[%clk 0:00:20]} 62. Kd4 {[%clk 0:00:18]}  Kf4 {[%clk 0:00:21]} 63. Kd5 {[%clk 0:00:19]}  Kf5 {[%clk 0:00:18]} 64. c6 {[%clk 0:00:19]}  Ra7 {[%clk 0:00:18]} 65. d7 {[%clk 0:00:19]}  Ra1 {[%clk 0:00:16]} 66. c7 {[%clk 0:00:17]}  Rd1+ {[%clk 0:00:10]} 67. Kc6 {[%clk 0:00:18]}  Rc1+ {[%clk 0:00:10]} 68. Kb7 {[%clk 0:00:18]}  Rb1+ {[%clk 0:00:09]} 69. Kc8 {[%clk 0:00:18]}  Ke6 {[%clk 0:00:10]} 70. d8=Q {[%clk 0:00:17]}  Rb6 {[%clk 0:00:08]} 71. Qd7+ {[%clk 0:00:17]} 1-0


[Site "https://www.chess.com"]

[Event "Titled Tuesday Blitz August 22 Late 2023"]
[White "Alfaro, William"]
[Black "Romero Ruscalleda, Josep"]
[WhiteFideId "6100457"]
[BlackFideId "2231859"]
[WhiteElo "2286"]
[BlackElo "2401"]
[Result "0-1"]
[Round "9"]
[TimeControl "180+1"]
[Date "2023.08.22"]
[WhiteClock "0:00:00"]
[BlackClock "0:00:43"]
[Board "105"]

1. e4 {[%clk 0:03:00]}  g6 {[%clk 0:02:59]} 2. d4 {[%clk 0:02:59]}  Bg7 {[%clk 0:02:59]} 3. g3 {[%clk 0:02:59]}  d6 {[%clk 0:02:59]} 4. Bg2 {[%clk 0:02:59]}  Nc6 {[%clk 0:02:57]} 5. Ne2 {[%clk 0:02:58]}  e5 {[%clk 0:02:55]} 6. d5 {[%clk 0:02:56]}  Nce7 {[%clk 0:02:55]} 7. c4 {[%clk 0:02:45]}  f5 {[%clk 0:02:55]} 8. Nbc3 {[%clk 0:02:44]}  Nf6 {[%clk 0:02:55]} 9. O-O {[%clk 0:02:31]}  O-O {[%clk 0:02:54]} 10. h4 {[%clk 0:02:30]}  fxe4 {[%clk 0:02:38]} 11. Nxe4 {[%clk 0:02:29]}  Nxe4 {[%clk 0:02:37]} 12. Bxe4 {[%clk 0:02:28]}  Bh3 {[%clk 0:02:37]} 13. Bg2 {[%clk 0:02:23]}  Qd7 {[%clk 0:02:33]} 14. Bg5 {[%clk 0:02:20]}  Bxg2 {[%clk 0:02:29]} 15. Kxg2 {[%clk 0:02:20]}  Nf5 {[%clk 0:02:28]} 16. h5 {[%clk 0:01:58]}  gxh5 {[%clk 0:02:22]} 17. Nc3 {[%clk 0:01:41]}  Qf7 {[%clk 0:02:17]} 18. Rh1 {[%clk 0:01:25]}  h6 {[%clk 0:02:05]} 19. Bd2 {[%clk 0:01:11]}  h4 {[%clk 0:01:58]} 20. Qg4 {[%clk 0:01:07]}  Nxg3 {[%clk 0:01:33]} 21. fxg3 {[%clk 0:00:54]}  Qf2+ {[%clk 0:01:30]} 22. Kh3 {[%clk 0:00:54]}  Qxd2 {[%clk 0:01:30]} 23. Ne4 {[%clk 0:00:29]}  Qe3 {[%clk 0:01:24]} 24. Rae1 {[%clk 0:00:25]}  Qf3 {[%clk 0:01:18]} 25. Rhf1 {[%clk 0:00:13]}  Qxg4+ {[%clk 0:01:15]} 26. Kxg4 {[%clk 0:00:13]}  hxg3 {[%clk 0:01:12]} 27. Nxg3 {[%clk 0:00:11]}  Rxf1 {[%clk 0:01:11]} 28. Rxf1 {[%clk 0:00:11]}  Rf8 {[%clk 0:01:10]} 29. Nf5 {[%clk 0:00:11]}  Kh7 {[%clk 0:01:05]} 30. Kh5 {[%clk 0:00:10]}  Rf6 {[%clk 0:01:02]} 31. b4 {[%clk 0:00:07]}  Bf8 {[%clk 0:00:59]} 32. a4 {[%clk 0:00:06]}  a6 {[%clk 0:00:57]} 33. a5 {[%clk 0:00:05]}  Rg6 {[%clk 0:00:50]} 34. Ne3 {[%clk 0:00:02]}  Rg5+ {[%clk 0:00:48]} 35. Kh4 {[%clk 0:00:02]}  Be7 {[%clk 0:00:45]} 36. Kh3 {[%clk 0:00:02]}  Kg6 {[%clk 0:00:45]} 37. Ng4 {[%clk 0:00:00]}  h5 {[%clk 0:00:43]} 0-1


[Site "https://www.chess.com"]